bitfinex-derivatives/quotes_ETHF0:USTF0_20250518
["timestamp","ask_amount","ask_price","bid_price","bid_amount"]
[1747599758613,0.83995,2380.1,2379.9,8.0034]
[1747599759623,0.83993,2380.2,2379.9,8.0034]
[1747599759824,8.5311,2380.3,2379.9,8.0034]
[1747599760020,4.04766,2380.4,2379.9,8.0034]
[1747599760219,4.04764,2380.4,2379.9,8.0034]
[1747599760417,0.8399,2380.3,2379.9,8.0034]
[1747599760617,0.83995,2380.1,2379.9,8.0034]
[1747599760818,8.0158,2380.3,2379.9,8.0034]
[1747599761017,3.2078,2380.1,2379.3,3.2078]
[1747599761325,11.3302,2380.0,2379.3,3.2078]
[1747599761521,0.83993,2380.2,2379.6,3.2078]
[1747599761717,0.83994,2380.2,2379.7,8.555]
[1747599761917,0.83991,2380.2,2379.7,8.555]
[1747599762119,30.2992,2380.5,2379.7,8.555]
[1747599762325,0.83991,2380.2,2379.7,8.555]
[1747599762519,0.84001,2380.0,2379.7,8.555]
[1747599762724,0.84003,2379.9,2379.7,8.555]
[1747599762916,3.2078,2380.2,2379.7,8.555]
[1747599763222,8.1224,2380.1,2379.7,8.555]
[1747599763421,27.0814,2380.1,2379.7,8.555]
[1747599763619,0.83994,2380.2,2379.7,8.555]
[1747599763818,0.83993,2380.2,2379.7,8.555]
[1747599764221,8.1224,2380.4,2379.7,8.555]
[1747599764421,0.83987,2380.4,2379.7,8.555]
[1747599764723,3.2078,2380.5,2379.7,8.555]
[1747599764927,8.4333,2380.3,2379.7,8.555]
[1747599765127,3.2078,2380.2,2379.7,8.555]
[1747599765430,0.84,2380.0,2379.7,8.555]
[1747599765623,0.83995,2380.1,2379.7,8.555]
[1747599765826,0.83999,2380.0,2379.7,8.555]
[1747599766019,22.1488,2380.5,2379.7,8.555]
[1747599766223,0.83983,2380.5,2379.9,3.2078]
[1747599766526,3.2078,2380.5,2380.0,7.9971]
[1747599766720,0.83991,2380.2,2380.0,7.9971]
[1747599766923,8.4333,2380.4,2380.0,7.9971]
[1747599767122,0.83992,2380.2,2380.0,7.9971]
[1747599767332,0.83995,2380.1,2380.0,7.9971]
[1747599767623,3.2078,2380.2,2380.0,7.9971]
[1747599768226,0.83989,2380.3,2380.0,7.9971]
[1747599768420,3.2078,2380.6,2380.0,7.9971]
[1747599768621,3.2078,2381.0,2380.5,3.2078]
[1747599768824,18.921,2381.6,2380.1,23.48943319]
[1747599768825,3.2078,2381.7,2380.8,3.2078]
[1747599769131,3.2078,2381.7,2380.9,8.5016]
[1747599770229,3.2078,2381.4,2380.9,8.5016]
[1747599770428,0.83944,2381.6,2380.9,8.5016]
[1747599770931,4.04718,2381.7,2381.1,3.2078]
[1747599771128,3.14741309,2381.9,2381.4,3.2078]
[1747599771325,3.14741309,2381.9,2381.4,22.1428]
[1747599771521,3.14741309,2381.9,2381.5,7.5443]
[1747599771726,3.14741309,2381.9,2381.8,3.2078]
[1747599772424,1.31188069,2382.0,2381.5,26.4793]
[1747599773228,1.31188069,2382.0,2381.5,7.5443]
[1747599773536,0.83934,2381.9,2381.5,3.2078]
[1747599773830,2.15116069,2382.0,2381.5,3.2078]
[1747599774334,1.31188069,2382.0,2381.8,3.2078]
[1747599774833,8.0556,2382.3,2381.9,7.9301]
[1747599776433,3.2078,2382.5,2381.9,7.9301]
[1747599776734,3.2078,2382.5,2382.1,3.2078]
[1747599776935,8.0719,2383.1,2382.4,3.2078]
[1747599777129,8.0719,2383.1,2382.5,7.929]
[1747599777331,3.2078,2382.9,2382.5,7.929]
[1747599777531,8.0719,2383.1,2382.5,7.929]
[1747599777833,0.83899,2382.9,2382.5,7.929]
[1747599778136,11.2797,2383.1,2382.5,7.929]
[1747599778137,3.2078,2383.1,2382.5,7.929]
[1747599778337,18.838,2383.2,2382.5,7.929]
[1747599778837,0.83893,2383.0,2382.5,7.929]
[1747599779037,8.0719,2382.9,2382.5,7.929]
[1747599779426,4.51968069,2383.5,2382.7,3.2078]
[1747599779738,1.31188069,2383.5,2383.1,3.2078]
[1747599780035,1.31188069,2383.5,2383.2,8.4748]
[1747599780338,2.15065069,2383.5,2383.2,8.4748]
[1747599780537,8.484,2383.4,2383.2,8.4748]
[1747599780736,8.484,2383.4,2382.8,3.2078]
[1747599780938,0.83896,2383.0,2382.7,8.4748]
[1747599781141,8.484,2382.9,2382.7,8.4748]
[1747599781338,0.83904,2382.7,2382.2,3.2078]
[1747599781533,0.83904,2382.7,2382.2,11.6826]
[1747599781837,8.484,2382.6,2382.2,11.6826]
[1747599782039,3.2078,2382.8,2382.2,11.6826]
[1747599782347,0.8391,2382.6,2382.2,11.6826]
[1747599782538,3.2078,2382.5,2381.9,3.2078]
[1747599782839,18.796,2382.4,2381.9,3.2078]
[1747599783040,8.4209,2382.3,2382.0,8.4706]
[1747599784444,0.00606723,2382.4,2382.2,3.2078]
[1747599784737,0.00606723,2382.4,2382.3,8.4706]
[1747599784936,0.00606723,2382.4,2382.3,27.3916]
[1747599785140,0.00606723,2382.4,2382.3,18.22847196]
[1747599785441,0.00606723,2382.4,2382.3,8.4706]
[1747599787235,0.00606723,2382.4,2382.3,13.4706]
[1747599787835,0.00606723,2382.4,2382.3,8.4706]
[1747599793041,0.00606723,2382.4,2381.9,45.5188]
[1747599793247,4.05302723,2382.4,2382.0,8.3963]
[1747599793544,8.2261,2382.3,2381.9,45.5188]
[1747599793746,9.0653,2382.3,2381.9,45.5188]
[1747599793946,8.2261,2382.3,2381.9,45.5188]
[1747599794146,8.2261,2382.3,2382.0,8.3963]
[1747599794342,3.21386723,2382.4,2382.0,8.3963]
[1747599794547,0.00606723,2382.4,2382.0,8.3963]
[1747599795044,0.83919,2382.3,2382.0,8.3963]
[1747599795439,0.00606723,2382.4,2382.0,8.3963]
[1747599795950,0.00606723,2382.4,2382.2,3.2078]
[1747599796147,0.00606723,2382.4,2382.3,8.076]
[1747599796946,0.00606723,2382.4,2381.0,6.3761]
[1747599796947,8.21386723,2382.4,2381.6,3.2078]
[1747599797147,8.21386723,2382.4,2381.3,3.2078]
[1747599797148,3.2078,2382.0,2381.3,3.2078]
[1747599797345,0.83938,2381.8,2381.4,8.076]
[1747599797540,9.21949,2381.7,2381.4,8.076]
[1747599797954,8.3801,2381.7,2381.4,8.076]
[1747599798660,4.3303,2382.3,2381.6,3.2078]
[1747599798951,8.3801,2382.2,2381.7,8.328]
[1747599799155,9.21933,2382.2,2381.7,8.328]
[1747599799551,0.83925,2382.1,2381.7,8.328]
[1747599799749,8.3801,2382.0,2381.7,8.328]
[1747599800052,0.00606723,2382.4,2381.9,3.2078]
[1747599800253,0.83919,2382.3,2382.0,8.328]
[1747599800448,0.83918,2382.3,2382.0,8.328]
[1747599800652,0.83925,2382.1,2382.0,8.328]
[1747599800851,7.971,2382.2,2381.6,3.2078]
[1747599801056,0.83931,2382.0,2381.7,8.1755]
[1747599801256,0.83922,2382.2,2381.7,8.1755]
[1747599801460,0.22862739,2382.4,2381.7,8.1755]
[1747599801461,19.47718,2382.3,2381.7,8.1755]
[1747599801652,7.971,2382.3,2381.9,3.2078]
[1747599801852,7.971,2382.3,2382.0,8.1755]
[1747599802050,0.22862739,2382.4,2382.0,8.1755]
[1747599802254,0.00606723,2382.4,2382.0,8.1755]
[1747599802655,3.2078,2382.3,2381.6,7.3478]
[1747599802953,3.2078,2381.7,2381.3,3.2078]
[1747599803157,0.83952,2381.4,2381.1,8.1755]
[1747599803357,7.971,2381.6,2381.1,8.1755]
[1747599803555,0.8395,2381.4,2381.1,8.1755]
[1747599803853,0.83953,2381.3,2381.1,8.1755]
[1747599804054,7.8928,2381.3,2381.1,8.1755]
[1747599804258,8.73234,2381.3,2381.1,8.1755]
[1747599804456,7.8928,2381.3,2381.0,3.2078]
[1747599804661,3.2078,2381.7,2380.9,3.2078]
[1747599804867,5.30628,2381.7,2380.9,3.2078]
[1747599805051,0.83959,2381.2,2380.8,8.0462]
[1747599805254,9.99137,2381.6,2380.8,8.0462]
[1747599805455,3.2078,2381.7,2380.8,8.0462]
[1747599805650,0.83951,2381.4,2380.8,8.0462]
[1747599805861,7.8928,2381.3,2380.8,8.0462]
[1747599806063,0.83961,2381.1,2380.8,8.0462]
[1747599806266,3.2078,2381.2,2380.8,8.0462]
[1747599806564,7.8928,2381.0,2380.8,8.0462]
[1747599807155,0.83952,2381.4,2380.9,3.2078]
[1747599807360,31.94892,2381.7,2381.0,8.0417]
[1747599807555,4.04732,2381.4,2381.0,8.0417]
[1747599807761,8.0526,2381.3,2380.6,4.45274622]
[1747599807962,0.83965,2381.0,2380.7,8.0417]
[1747599808269,8.0526,2380.9,2380.7,8.0417]
[1747599808767,8.8923,2380.9,2380.7,8.0417]
[1747599808966,3.2078,2380.8,2380.2,3.2078]
[1747599809161,8.0526,2380.7,2380.3,8.0417]
[1747599809666,12.10017,2380.7,2380.3,8.0417]
[1747599809856,0.8398,2380.6,2380.3,8.0417]
[1747599810061,0.83984,2380.5,2380.3,8.0417]
[1747599810261,8.0149,2380.4,2380.3,8.0417]
[1747599810556,0.83982,2380.5,2380.3,8.0417]
[1747599810863,0.83997,2380.1,2379.9,4.45274622]
[1747599811071,3.2078,2380.4,2379.9,4.45274622]
[1747599811072,8.0149,2380.4,2379.9,4.45274622]
[1747599811261,8.0149,2380.4,2380.0,8.0486]
[1747599811662,8.0149,2380.4,2379.2,1.24494622]
[1747599811663,3.2078,2380.1,2379.2,4.45274622]
[1747599811869,5.30801,2379.8,2379.2,4.45274622]
[1747599812064,34.0225,2379.7,2379.2,1.24494622]
[1747599812569,0.84024,2379.3,2379.2,1.24494622]
[1747599812866,18.546,2379.3,2379.2,1.24494622]
[1747599813367,18.542,2379.4,2379.2,1.24494622]
[1747599813563,12.08164,2379.3,2379.2,1.24494622]
[1747599813770,8.87384,2379.3,2379.2,1.24494622]
[1747599814072,12.08164,2379.3,2379.2,1.24494622]
[1747599814268,17.08164,2379.3,2379.2,1.24494622]
[1747599814566,32.40584,2379.3,2379.2,1.24494622]
[1747599814772,27.40784,2379.3,2379.2,1.24494622]
[1747599815473,35.61564,2379.3,2379.2,1.24494622]
[1747599815770,35.61564,2379.3,2378.8,2.45167504]
[1747599815771,0.84038,2378.9,2378.8,1.18533857]
[1747599815963,3.2078,2378.9,2378.1,4.08130816]
[1747599816159,7.9615,2378.8,2377.8,11.118]
[1747599816365,19.36046,2378.7,2377.8,11.118]
[1747599816569,7.9615,2378.6,2378.1,3.2078]
[1747599816767,3.2078,2379.1,2378.2,7.9102]
[1747599816973,18.516,2378.8,2378.4,3.2078]
[1747599817162,18.516,2378.8,2378.5,7.9102]
[1747599817565,0.84037,2379.0,2378.5,7.9102]
[1747599817760,0.84043,2378.8,2378.5,7.9102]
[1747599817964,0.84044,2378.8,2378.5,7.9102]
[1747599818171,7.9615,2378.9,2378.5,7.9102]
[1747599818172,0.84048,2378.6,2378.5,7.9102]
[1747599818372,7.9615,2378.7,2378.5,7.9102]
[1747599818568,8.80195,2378.7,2378.5,7.9102]
[1747599818779,7.9615,2378.7,2378.5,7.9102]
[1747599819168,8.80196,2378.7,2378.2,3.2078]
[1747599819468,7.9615,2378.7,2378.3,7.8686]
[1747599819971,18.494,2379.0,2378.5,3.2078]
[1747599820173,18.492,2379.3,2378.6,7.8686]
[1747599820366,3.2078,2379.1,2378.6,7.8686]
[1747599820675,3.2078,2379.1,2378.8,3.2078]
[1747599820676,0.84031,2379.1,2378.8,3.2078]
[1747599820972,3.2078,2379.1,2378.4,3.2078]
[1747599821274,21.6928,2379.1,2378.4,3.2078]
[1747599821572,8.5662,2379.0,2378.5,7.8686]
[1747599822264,8.5662,2379.0,2378.7,3.2078]
[1747599822466,8.5662,2379.0,2378.8,7.9445]
[1747599822969,8.5662,2379.0,2378.1,3.2078]
[1747599823263,0.84044,2378.8,2378.1,11.1523]
[1747599823469,8.1945,2378.7,2378.1,11.1523]
[1747599823770,9.03496,2378.7,2378.1,11.1523]
[1747599824171,8.1945,2378.7,2378.1,11.1523]
[1747599824368,9.03496,2378.7,2378.1,11.1523]
[1747599824871,0.84062,2378.2,2378.1,7.9445]
[1747599825070,18.454,2378.2,2377.5,3.2078]
[1747599825276,8.1567,2378.1,2377.6,7.9748]
[1747599825475,8.38073802,2378.1,2377.6,7.9748]
[1747599825683,0.8407,2378.0,2377.6,7.9748]
[1747599825868,11.58853802,2378.1,2377.6,7.9748]
[1747599826074,4.04854,2377.9,2377.6,7.9748]
[1747599826274,0.84074,2377.9,2377.6,7.9748]
[1747599826470,8.38073802,2378.1,2377.6,7.9748]
[1747599826777,0.8407,2378.0,2377.6,7.9748]
[1747599826975,8.1567,2377.9,2377.5,3.2078]
[1747599827177,18.438,2378.4,2377.6,7.9748]
[1747599827381,26.8150796,2378.5,2377.8,3.2078]
[1747599827576,28.9164496,2378.5,2377.9,7.9748]
[1747599827878,0.84069,2378.0,2377.9,7.9748]
[1747599828073,0.84076,2377.9,2377.2,3.2078]
[1747599828274,19.26968,2378.1,2377.5,3.2078]
[1747599828476,21.6368,2378.1,2377.6,7.9798]
[1747599828671,8.3406,2378.0,2377.6,7.9798]
[1747599828877,12.38911,2378.0,2377.6,7.9798]
[1747599829079,8.3406,2378.0,2377.6,7.9798]
[1747599829274,18.421,2378.3,2377.6,7.9798]
[1747599829479,18.419,2378.4,2377.8,3.2078]
[1747599829672,19.25955,2378.4,2377.9,7.9798]
[1747599829877,22.46735,2378.4,2377.9,7.9798]
[1747599830076,0.8406,2378.3,2377.9,7.9798]
[1747599830376,9.1812,2378.3,2377.9,7.9798]
[1747599830577,0.84063,2378.2,2377.9,7.9798]
[1747599830879,9.18122,2378.3,2377.9,7.9798]
[1747599831076,0.84062,2378.2,2377.9,7.9798]
[1747599831381,8.3406,2378.3,2377.9,7.9798]
[1747599831779,3.2078,2378.4,2377.9,7.9798]
[1747599832183,4.3089,2378.9,2378.2,3.2078]
[1747599832381,26.7374,2378.8,2378.3,8.3532]
[1747599832582,0.84046,2378.7,2378.3,8.3532]
[1747599832776,1.06245316,2378.7,2378.3,8.3532]
[1747599832977,9.40285316,2378.7,2378.3,8.3532]
[1747599833277,0.84048,2378.6,2378.3,8.3532]
[1747599833585,0.84052,2378.5,2378.3,8.3532]
[1747599833876,0.84055,2378.4,2378.3,8.3532]
[1747599834077,0.84059,2378.3,2377.8,22.3759]
[1747599834286,11.5482,2378.4,2378.0,8.2387]
[1747599834475,8.3404,2378.4,2378.0,8.2387]
[1747599834675,9.18098,2378.4,2378.0,8.2387]
[1747599834883,0.84053,2378.5,2378.0,8.2387]
[1747599835278,8.9072,2378.6,2378.0,8.2387]
[1747599835576,0.84053,2378.5,2378.0,8.2387]
[1747599835983,8.0667,2378.6,2378.0,8.2387]
[1747599836484,0.84064,2378.2,2378.0,8.2387]
[1747599836775,0.84065,2378.2,2378.0,8.2387]
[1747599836980,3.2078,2378.5,2378.0,8.2387]
[1747599837171,0.84059,2378.3,2378.0,8.2387]
[1747599837373,0.8405,2378.6,2378.0,8.2387]
[1747599837580,4.27026316,2378.7,2378.0,8.2387]
[1747599837980,0.84048,2378.6,2378.1,3.2078]
[1747599838284,0.84057,2378.4,2378.2,8.2169]
[1747599838684,11.2227,2378.3,2377.6,4.2275]
[1747599838885,4.0485,2378.0,2377.7,8.2169]
[1747599839182,0.84067,2378.1,2377.7,8.2169]
[1747599839382,4.04847,2378.1,2377.7,8.2169]
[1747599839583,8.0149,2378.0,2377.7,8.2169]
[1747599839787,8.85561,2378.0,2377.7,8.2169]
[1747599839981,3.2078,2377.8,2377.4,3.2078]
[1747599840176,8.3632,2377.7,2377.4,11.3571]
[1747599840479,9.20402,2377.7,2377.4,11.3571]
[1747599840684,8.3632,2377.7,2377.4,11.3571]
[1747599840982,3.2078,2377.5,2376.6,7.5339]
[1747599841176,26.6802,2377.4,2376.7,8.1493]
[1747599841379,18.314,2377.7,2376.9,3.2078]
[1747599841676,18.314,2377.7,2377.0,8.1493]
[1747599841877,9.20405,2377.6,2377.0,8.1493]
[1747599842078,8.3632,2377.6,2377.0,8.1493]
[1747599842482,12.41184,2377.6,2377.0,8.1493]
[1747599842683,0.84088,2377.5,2377.0,8.1493]
[1747599842988,0.84096,2377.3,2377.0,8.1493]
[1747599843179,4.04879,2377.2,2377.0,8.1493]
[1747599843486,9.15482,2377.1,2376.6,3.14312707]
[1747599843685,8.3138,2377.1,2376.7,8.0617]
[1747599843888,0.84112,2376.8,2376.3,7.4519]
[1747599844081,8.3138,2377.1,2376.3,7.4519]
[1747599844082,18.293,2376.9,2376.4,8.0617]
[1747599844289,8.3138,2376.8,2376.4,8.0617]
[1747599844682,7.3033,2377.4,2376.4,8.0617]
[1747599844885,3.2078,2377.1,2376.4,8.0617]
[1747599845181,19.12606,2377.0,2376.4,8.0617]
[1747599845389,0.84109,2376.9,2376.4,8.0617]
[1747599845581,8.3138,2376.9,2376.4,8.0617]
[1747599846285,3.2078,2377.1,2376.4,8.0617]
[1747599846490,0.84115,2376.8,2376.4,8.0617]
[1747599846790,8.6368,2376.7,2376.4,8.0617]
[1747599846982,0.21727044,2376.7,2376.4,8.0617]
[1747599847187,18.267,2376.8,2376.4,8.0617]
[1747599847683,4.04903,2376.5,2376.4,8.0617]
[1747599847885,3.2078,2376.5,2375.6,3.2078]
[1747599848191,8.6368,2376.4,2375.6,3.29198925]
[1747599848383,9.47808,2376.4,2375.6,3.29198925]
[1747599848590,9.47808,2376.4,2375.9,3.2078]
[1747599848894,26.8888,2376.4,2375.9,3.2078]
[1747599849093,29.9468,2376.4,2375.9,3.2078]
[1747599849292,30.78808,2376.4,2375.9,3.2078]
[1747599849592,33.99588,2376.4,2375.9,3.2078]
[1747599849898,11.6948,2376.4,2375.9,3.2078]
[1747599850086,18.242,2376.3,2375.9,3.2078]
[1747599850287,11.6948,2376.4,2375.9,3.2078]
[1747599850483,21.296,2376.4,2375.9,3.2078]
[1747599850688,21.296,2376.4,2375.6,3.2078]
[1747599850892,3.2078,2376.2,2375.4,4.2021]
[1747599851092,8.6563,2376.1,2375.5,8.3654]
[1747599851293,18.23,2376.0,2375.6,3.2078]
[1747599851494,21.4378,2376.0,2375.7,8.3654]
[1747599851793,19.07142,2376.0,2375.7,8.3654]
[1747599851993,18.23,2376.0,2375.7,8.3654]
[1747599852194,24.4958,2376.0,2375.7,8.3654]
[1747599852396,21.288,2376.0,2375.7,8.3654]
[1747599852593,22.12942,2376.0,2375.7,8.3654]
[1747599852789,8.5508,2375.9,2375.0,3.2078]
[1747599852989,18.216,2375.8,2375.4,8.0128]
[1747599853591,26.7668,2375.8,2374.9,7.4522]
[1747599853793,9.39227,2375.8,2375.4,8.0128]
[1747599853996,18.207,2375.7,2375.4,8.0128]
[1747599854894,11.6088,2375.8,2375.4,8.0128]
[1747599854895,3.058,2375.8,2375.4,8.0128]
[1747599855093,18.198,2375.7,2375.4,8.0128]
[1747599855491,3.058,2375.8,2375.4,8.0128]
[1747599855887,3.058,2375.8,2375.6,3.2078]
[1747599856087,3.058,2375.8,2375.7,8.0844]
[1747599858298,3.89947,2375.8,2375.7,8.0844]
[1747599858597,0.84152,2375.7,2375.0,3.2078]
[1747599858797,8.1431,2375.7,2375.1,8.2116]
[1747599858996,8.98463,2375.7,2375.1,8.2116]
[1747599859198,11.2011,2375.7,2375.1,8.2116]
[1747599859702,15.25043,2375.7,2375.1,8.2116]
[1747599859996,11.2011,2375.7,2375.1,8.2116]
[1747599860297,29.3531,2375.7,2375.1,8.2116]
[1747599860695,30.19462,2375.7,2375.1,8.2116]
[1747599861098,21.202,2375.7,2375.1,8.2116]
[1747599861301,21.202,2375.7,2375.3,3.2078]
[1747599861600,21.202,2375.7,2375.4,8.5446]
[1747599862097,3.058,2375.7,2375.4,8.5446]
[1747599862298,21.191,2375.7,2375.4,8.5446]
[1747599862499,3.2078,2375.6,2375.4,8.5446]
[1747599862701,3.2078,2375.6,2375.0,11.7524]
[1747599862702,0.84164,2375.4,2375.0,11.7524]
[1747599862896,8.2344,2375.3,2375.0,11.7524]
[1747599863097,11.54070621,2375.3,2375.0,8.5446]
[1747599863401,21.18,2375.3,2375.0,8.5446]
[1747599863701,21.17188652,2375.3,2375.0,8.5446]
[1747599864202,3.04988652,2375.3,2375.0,8.5446]
[1747599866294,0.84173,2375.1,2374.4,3.2078]
[1747599866599,18.092,2375.0,2374.7,8.1258]
[1747599866800,7.8775,2374.9,2374.7,8.1258]
[1747599867101,10.9355,2374.9,2374.7,8.1258]
[1747599867304,10.9355,2374.9,2374.1,11.4881]
[1747599867505,0.84183,2374.8,2374.2,8.1258]
[1747599867801,8.82967,2374.7,2374.2,8.1258]
[1747599867993,7.9878,2374.7,2374.2,8.1258]
[1747599868193,11.0458,2374.7,2374.2,8.1258]
[1747599868391,11.8877,2374.7,2374.2,8.1258]
[1747599869196,11.0458,2374.7,2374.2,8.1258]
[1747599869397,15.09546,2374.7,2374.2,8.1258]
[1747599869596,14.2536,2374.7,2374.2,8.1258]
[1747599870099,12.2107403,2374.7,2374.2,8.1258]
[1747599870304,3.058,2374.7,2374.4,3.2078]
[1747599870599,0.8419,2374.6,2374.1,8.2803]
[1747599870795,8.1872,2374.6,2374.2,8.4492]
[1747599870994,11.395,2374.6,2373.9,3.2078]
[1747599871201,0.84197,2374.4,2374.0,8.4492]
[1747599871400,9.02921,2374.3,2374.0,8.4492]
[1747599871699,8.1872,2374.3,2374.0,8.4492]
[1747599872297,8.1872,2374.3,2373.6,3.2078]
[1747599872298,11.2452,2374.3,2373.6,3.2078]
[1747599872497,11.2452,2374.3,2373.7,8.4492]
[1747599873001,3.058,2374.3,2373.9,3.2078]
[1747599873306,21.087,2374.3,2374.0,8.4492]
[1747599873895,3.058,2374.3,2374.0,8.4492]
[1747599874092,3.058,2374.3,2374.2,3.2078]
[1747599874999,3.058,2374.3,2374.2,11.5503]
[1747599875506,3.058,2374.3,2374.2,16.5503]
[1747599876006,3.058,2374.3,2374.2,11.5503]
[1747599878398,3.058,2374.3,2374.2,16.5503]
[1747599878597,3.2078,2375.1,2374.2,16.5503]
[1747599878799,8.72548687,2375.4,2374.7,3.2078]
[1747599878995,3.2078,2375.3,2374.8,7.8992]
[1747599879301,3.2078,2375.0,2374.4,3.2078]
[1747599879500,8.4854,2374.9,2374.5,7.8992]
[1747599880303,9.3272,2374.9,2374.5,7.8992]
[1747599880502,8.4854,2374.9,2374.5,7.8992]
[1747599882107,21.1448,2375.1,2374.5,7.8992]
[1747599882308,8.5086,2375.0,2374.5,7.8992]
[1747599882701,0.84166,2375.3,2374.5,7.8992]
[1747599882900,26.4019,2375.2,2374.5,7.8992]
[1747599883106,27.24359,2375.2,2374.5,7.8992]
[1747599883303,8.4719,2375.2,2374.5,7.8992]
[1747599883509,26.3949,2375.2,2374.5,7.8992]
[1747599883805,4.04954,2375.1,2374.5,7.8992]
[1747599884005,9.31368,2375.0,2374.5,7.8992]
[1747599884607,17.923,2375.2,2374.5,7.8992]
[1747599884608,3.44906345,2375.4,2374.5,7.8992]
[1747599884912,3.2078,2375.0,2374.5,7.8992]
[1747599885110,8.4719,2374.9,2374.5,7.8992]
[1747599885816,9.31371,2374.9,2374.5,7.8992]
[1747599886009,9.3137,2374.9,2374.5,7.8992]
[1747599886311,26.3659,2374.9,2374.5,7.8992]
[1747599886511,0.84183,2374.8,2374.5,7.8992]
[1747599886811,8.3146,2374.7,2374.5,7.8992]
[1747599887613,8.3146,2374.7,2374.1,7.574]
[1747599887914,0.84195,2374.5,2374.2,8.1922]
[1747599888113,3.2078,2374.6,2374.2,8.1922]
[1747599888114,8.3146,2374.4,2374.2,8.1922]
[1747599888816,21.0758,2374.6,2374.2,8.1922]
[1747599889020,7.9523,2374.6,2374.2,8.1922]
[1747599890119,4.04979,2374.4,2373.6,1.25252423]
[1747599890314,0.84201,2374.3,2374.0,8.1111]
[1747599890514,8.79431,2374.3,2374.0,8.1111]
[1747599890811,7.9523,2374.3,2373.5,7.2094]
[1747599891018,4.04991,2374.1,2373.6,8.1111]
[1747599891205,7.9523,2374.0,2373.6,8.1111]
[1747599891622,3.2078,2373.8,2373.6,8.1111]
[1747599891914,17.834,2373.9,2373.6,8.1111]
[1747599892311,17.834,2373.9,2373.2,1.25252423]
[1747599892312,26.0418,2373.9,2373.2,1.25252423]
[1747599892514,3.2078,2373.6,2373.2,0.21406567]
[1747599892714,0.84234,2373.4,2373.2,0.21406567]
[1747599892918,3.2078,2373.3,2373.2,0.21406567]
[1747599893715,3.2078,2373.3,2373.0,8.0659]
[1747599893912,17.817,2373.4,2373.0,3.2078]
[1747599894117,8.7278,2373.3,2372.7,3.2078]
[1747599894511,8.7278,2373.3,2372.8,8.0659]
[1747599894813,0.31927053,2373.7,2372.8,8.0659]
[1747599895015,8.1519,2373.7,2373.0,3.2078]
[1747599895213,8.1519,2373.7,2373.1,12.0834]
[1747599895519,8.40149169,2373.7,2373.1,12.0834]
[1747599895724,0.24959169,2373.7,2373.1,12.0834]
[1747599896019,17.794,2373.8,2373.3,3.2078]
[1747599896220,0.24549346,2373.8,2373.4,8.1376]
[1747599896517,8.1519,2374.0,2372.9,3.2078]
[1747599896711,8.1519,2373.7,2373.2,3.2078]
[1747599896910,18.33333321,2373.8,2373.3,8.1376]
[1747599897113,0.23978032,2373.8,2373.3,8.1376]
[1747599897312,18.62216,2373.9,2373.3,8.1376]
[1747599897512,8.1519,2373.8,2373.3,8.1376]
[1747599897713,0.66152869,2373.7,2373.3,8.1376]
[1747599897918,0.8423,2373.5,2373.3,8.1376]
[1747599898313,8.4055,2373.4,2373.3,8.1376]
[1747599898513,1.50375869,2373.7,2373.3,8.1376]
[1747599898719,8.4055,2373.6,2373.3,8.1376]
[1747599899116,0.66152869,2373.7,2373.4,3.2078]
[1747599899320,0.66152869,2373.7,2373.5,7.9472]
[1747599902314,8.1506,2373.6,2373.0,4.1759]
[1747599902622,8.1506,2373.6,2373.1,11.2538]
[1747599902824,0.66152869,2373.7,2373.1,11.2538]
[1747599903122,0.66152869,2373.7,2373.4,3.2078]
[1747599903311,0.66152869,2373.7,2373.5,8.046]
[1747599903825,9.65434869,2373.7,2373.5,8.046]
[1747599904125,8.99282,2373.7,2373.5,8.046]
[1747599904819,8.1506,2373.7,2373.0,7.3837]
[1747599905025,0.84243,2373.1,2372.7,3.2078]
[1747599905520,0.84243,2373.1,2372.3,8.0278]
[1747599905521,3.2078,2372.9,2372.3,11.2356]
[1747599905720,8.2922,2372.8,2372.3,11.2356]
[1747599905916,11.7331,2373.6,2372.7,3.2078]
[1747599906116,8.2922,2373.5,2372.7,3.2078]
[1747599906420,0.24784738,2373.9,2373.0,3.2078]
[1747599906722,8.2922,2373.8,2373.4,3.2078]
[1747599907024,0.84205,2374.2,2373.4,3.2078]
[1747599907223,17.676,2374.3,2373.7,3.2078]
[1747599907525,0.8422,2373.8,2373.3,3.2078]
[1747599907722,3.2078,2373.5,2373.1,4.1288]
[1747599907914,0.84228,2373.6,2373.1,4.1288]
[1747599908119,8.4231,2373.5,2373.1,4.1288]
[1747599908326,9.2654,2373.5,2373.2,8.2023]
[1747599908528,8.4231,2373.5,2373.2,8.2023]
[1747599908729,3.2078,2373.3,2373.2,8.2023]
[1747599909021,3.2078,2373.3,2372.7,11.4101]
[1747599909222,8.4231,2373.2,2372.7,8.2023]
[1747599909425,8.4231,2373.2,2372.4,3.2078]
[1747599909730,8.4231,2373.2,2372.5,8.2023]
[1747599910025,0.84253,2372.9,2372.5,8.2023]
[1747599910225,8.6502,2372.8,2372.5,8.2023]
[1747599910424,0.84243,2373.1,2372.5,8.2023]
[1747599910626,9.49268,2373.0,2372.5,8.2023]
[1747599910925,0.84252,2372.9,2372.5,8.2023]
[1747599911125,11.858,2372.8,2372.5,8.2023]
[1747599911426,0.84269,2372.4,2372.0,4.3351]
[1747599911627,3.2078,2372.2,2372.1,8.5145]